{"text_format":"1","workbook":"xlsx","n_sheets":4,"sheets":["県税提出用①","県税提出用②","提出用控","記載要領"],"not_rendered":{"charts":0,"images":0,"macros":0,"external_links":0,"defined_names":4,"comments":0,"pivot_tables":0},"unopened":[],"bounds":{"document_bytes":16777216,"sheet_cells":100000,"rows_first":2000,"rows_last":500,"rows_between":2000,"halvings":0,"cell_chars":16384,"cell_head_chars":4096},"cells_cut":0,"cells_raw":0,"read":"whole","date_system":"1900"}

{"sheet":"県税提出用①","index":0,"n_rows":18,"n_cols":113,"rows_kept":18,"cut":false,"hidden":false,"merged":[[11,107,13,120],[14,97,15,106],[12,41,15,60],[2,65,10,72],[12,16,15,24],[2,112,3,120],[2,73,3,102],[2,103,3,111],[4,112,4,116],[4,117,4,120],[4,1,6,64],[7,1,8,64],[3,1,3,10],[52,16,52,64],[54,16,54,64],[20,65,67,120],[17,12,18,64],[42,12,43,15],[17,65,18,120],[19,65,19,120],[26,12,27,15],[28,12,29,15],[40,12,41,15],[56,16,56,64],[48,12,49,15],[50,12,51,15],[50,16,50,64],[48,16,48,64],[44,12,45,15],[46,12,47,15],[34,16,34,64],[40,16,40,64],[20,16,20,64],[30,16,30,64],[28,16,28,64],[26,16,26,64],[24,16,24,64],[66,12,67,15],[66,16,66,64],[64,16,64,64],[60,12,61,15],[62,12,63,15],[60,16,60,64],[62,16,62,64],[62,1,63,11],[64,1,65,11],[66,1,67,11],[34,1,35,11],[36,1,37,11],[38,1,39,11],[40,1,41,11],[42,1,43,11],[12,10,15,12],[12,25,15,40],[12,13,15,15],[64,12,65,15],[17,1,18,11],[56,12,57,15],[58,12,59,15],[58,16,58,64],[34,12,35,15],[36,12,37,15],[38,12,39,15],[19,12,21,15],[22,12,23,15],[24,12,25,15],[46,16,46,64],[44,16,44,64],[19,1,19,10],[52,12,53,15],[54,12,55,15],[30,1,31,11],[4,103,4,106],[4,107,4,111],[5,76,5,78],[5,88,5,90],[5,91,5,93],[5,94,5,96],[5,97,5,99],[5,100,5,102],[5,79,5,81],[4,73,4,102],[5,82,5,84],[5,85,5,87],[22,16,22,64],[6,73,7,84],[6,85,7,120],[8,73,9,78],[8,79,9,84],[8,85,9,90],[8,91,9,96],[8,97,9,102],[8,103,9,108],[8,109,9,114],[11,97,12,106],[32,1,33,11],[8,115,9,120],[58,1,59,11],[60,1,61,11],[9,1,9,64],[14,107,16,120],[44,1,45,11],[46,1,47,11],[48,1,49,11],[50,1,51,11],[52,1,53,11],[54,1,55,11],[56,1,57,11],[38,16,38,64],[36,16,36,64],[42,16,42,64],[32,16,32,64],[30,12,31,15],[32,12,33,15],[20,1,21,11],[22,1,23,11],[24,1,25,11],[26,1,27,11],[28,1,29,11]]}
[]
[]
[null,null,null,null,null,null,null,null,null,null,null,null,null,null,null,null,null,null,null,null,null,null,null,null,null,null,null,null,null,null,null,null,null,null,null,null,null,null,null,null,null,null,null,null,null,null,null,null,null,null,null,null,null,null,null,null,null,null,null,null,null,null,null,null,null,"※処理事項",null,null,null,null,null,null,null,"事業者コード",null,null,null,null,null,null,null,null,null,null,null,null,null,null,null,null,null,null,null,null,null,null,null,null,null,null,null,null,null,"処理\n区分",null,null,null,null,null,null,null,null,"申告\n区分"]
[null,"　申告者の氏名又は名称"]
[]
[]
[null,null,null,null,null,null,null,null,null,null,null,null,null,null,null,null,null,null,null,null,null,null,null,null,null,null,null,null,null,null,null,null,null,null,null,null,null,null,null,null,null,null,null,null,null,null,null,null,null,null,null,null,null,null,null,null,null,null,null,null,null,null,null,null,null,null,null,null,null,null,null,null,null,"予備",null,null,null,null,null,null,null,null,null,null,null,"申 告 年 月 日"]
[null,"　個人番号又は法人番号\n　    　 　　↓個人番号の記載に当たっては、左端を空欄とし、ここから記載してください。"]
[null,null,null,null,null,null,null,null,null,null,null,null,null,null,null,null,null,null,null,null,null,null,null,null,null,null,null,null,null,null,null,null,null,null,null,null,null,null,null,null,null,null,null,null,null,null,null,null,null,null,null,null,null,null,null,null,null,null,null,null,null,null,null,null,null,null,null,null,null,null,null,null,null,1,null,null,null,null,null,4]
[]
[]
[null,null,null,null,null,null,null,null,null,null,null,null,null,null,null,null,null,null,null,null,null,null,null,null,null,null,null,null,null,null,null,null,null,null,null,null,null,null,null,null,null,null,null,null,null,null,null,null,null,null,null,null,null,null,null,null,null,null,null,null,null,null,null,null,null,null,null,null,null,null,null,null,null,null,null,null,null,null,null,null,null,null,null,null,null,null,null,null,null,null,null,null,null,null,null,null,null,null,null,null,null,null,null,null,null,null,null,"枚のうち"]
[null,null,null,null,null,null,null,null,null,null,"令和",null,null,null,null,null,"年",null,null,null,null,null,null,null,null,null,null,null,null,null,null,null,null,null,null,null,null,null,null,null,null,"月申告分"]
[]
[null,null,null,null,null,null,null,null,null,null,null,null,null,null,null,null,null,null,null,null,null,null,null,null,null,null,null,null,null,null,null,null,null,null,null,null,null,null,null,null,null,null,null,null,null,null,null,null,null,null,null,null,null,null,null,null,null,null,null,null,null,null,null,null,null,null,null,null,null,null,null,null,null,null,null,null,null,null,null,null,null,null,null,null,null,null,null,null,null,null,null,null,null,null,null,null,null,null,null,null,null,null,null,null,null,null,null,"枚目"]
[]
[]
[null,"品　　　　目",null,null,null,null,null,null,null,null,null,null,"数　　　　量",null,null,null,null,null,null,null,null,null,null,null,null,null,null,null,null,null,null,null,null,null,null,null,null,null,null,null,null,null,null,null,null,null,null,null,null,null,null,null,null,null,null,null,null,null,null,null,null,null,null,null,null,"返還の理由及びその他\n参考となるべき事項"]

{"sheet":"県税提出用②","index":1,"n_rows":67,"n_cols":113,"rows_kept":67,"cut":false,"hidden":false,"merged":[[20,3,21,11],[2,73,3,102],[2,103,3,111],[2,112,3,120],[4,112,4,116],[4,117,4,120],[4,103,4,106],[4,107,4,111],[8,103,9,108],[8,109,9,114],[8,115,9,120],[5,97,5,99],[5,100,5,102],[8,73,9,78],[8,79,9,84],[8,85,9,90],[8,91,9,96],[8,97,9,102],[5,76,5,78],[5,79,5,81],[5,82,5,84],[5,85,5,87],[5,88,5,90],[5,91,5,93],[5,94,5,96],[26,16,26,64],[28,16,28,64],[22,16,22,64],[24,16,24,64],[11,97,12,106],[14,97,15,106],[20,12,20,15],[20,16,20,64],[12,16,15,24],[17,97,17,106],[12,13,15,15],[7,13,11,30],[12,25,15,40],[11,41,15,96],[34,16,34,64],[36,16,36,64],[34,1,35,2],[36,1,37,2],[34,12,34,15],[36,12,36,15],[30,16,30,64],[32,16,32,64],[32,12,32,15],[46,12,46,15],[48,12,48,15],[42,16,42,64],[44,16,44,64],[42,1,43,2],[44,1,45,2],[42,12,42,15],[44,12,44,15],[38,16,38,64],[40,16,40,64],[38,1,39,2],[40,1,41,2],[38,12,38,15],[40,12,40,15],[64,12,64,15],[58,16,58,64],[8,65,10,72],[60,16,60,64],[58,1,59,2],[60,1,61,2],[58,12,58,15],[60,12,60,15],[54,16,54,64],[56,16,56,64],[54,1,55,2],[56,1,57,2],[54,12,54,15],[56,12,56,15],[50,16,50,64],[52,16,52,64],[50,1,51,2],[52,1,53,2],[50,12,50,15],[52,12,52,15],[46,16,46,64],[48,16,48,64],[46,1,47,2],[48,1,49,2],[20,1,21,2],[17,1,18,2],[19,1,19,2],[4,73,4,102],[66,12,66,15],[6,31,6,120],[66,1,67,2],[22,12,22,15],[24,12,24,15],[26,12,26,15],[28,12,28,15],[30,12,30,15],[66,16,66,64],[22,1,23,2],[24,1,25,2],[26,1,27,2],[28,1,29,2],[30,1,31,2],[32,1,33,2],[62,16,62,64],[64,16,64,64],[62,1,63,2],[64,1,65,2],[62,12,62,15]]}
[]
[]
[null,null,null,null,null,null,null,null,null,null,null,null,null,null,null,null,null,null,null,null,null,null,null,null,null,null,null,null,null,null,null,null,null,null,null,null,null,null,null,null,null,null,null,null,null,null,null,null,null,null,null,null,null,null,null,null,null,null,null,null,null,null,null,null,null,null,null,null,null,null,null,null,null,"事業者コード",null,null,null,null,null,null,null,null,null,null,null,null,null,null,null,null,null,null,null,null,null,null,null,null,null,null,null,null,null,"処理\n区分",null,null,null,null,null,null,null,null,"申告\n区分"]
[]
[null,null,null,null,null,null,null,null,null,null,null,null,null,null,null,null,null,null,null,null,null,null,null,null,null,null,null,null,null,null,null,null,null,null,null,null,null,null,null,null,null,null,null,null,null,null,null,null,null,null,null,null,null,null,null,null,null,null,null,null,null,null,null,null,null,null,null,null,null,null,null,null,null,{"$f":"IF(県税提出用①!BV5=\"\",\"\",県税提出用①!BV5)","v":""}]
[]
[]
[]
[null,null,null,null,null,null,null,null,null,null,null,null,null,null,null,null,null,null,null,null,null,null,null,null,null,null,null,null,null,null,null,null,null,null,null,null,null,null,null,null,null,null,null,null,null,null,null,null,null,null,null,null,null,null,null,null,null,null,null,null,null,null,null,null,null,"サ",null,null,null,null,null,null,null,1,null,null,null,null,null,4]
[]
[]
[null,null,null,null,null,null,null,null,null,null,null,null,null,null,null,null,null,null,null,null,null,null,null,null,null,null,null,null,null,null,null,null,null,null,null,null,null,null,null,null,null,null,null,null,null,null,null,null,null,null,null,null,null,null,null,null,null,null,null,null,null,null,null,null,null,null,null,null,null,null,null,null,null,null,null,null,null,null,null,null,null,null,null,null,null,null,null,null,null,null,null,null,null,null,null,null,null,{"$f":"IF(県税提出用①!CT12=\"\",\"\",県税提出用①!CT12)","v":""}]
[null,null,null,null,null,null,null,null,null,null,null,null,null,{"$f":"IF(県税提出用①!N13=\"\",\"\",県税提出用①!N13)","v":""},null,null,null,null,null,null,null,null,null,null,null,{"$f":"IF(県税提出用①!Z13=\"\",\"\",県税提出用①!Z13)","v":""}]
[]
[null,null,null,null,null,null,null,null,null,null,null,null,null,null,null,null,null,null,null,null,null,null,null,null,null,null,null,null,null,null,null,null,null,null,null,null,null,null,null,null,null,null,null,null,null,null,null,null,null,null,null,null,null,null,null,null,null,null,null,null,null,null,null,null,null,null,null,null,null,null,null,null,null,null,null,null,null,null,null,null,null,null,null,null,null,null,null,null,null,null,null,null,null,null,null,null,null,{"$f":"IF(県税提出用①!CT15=\"\",\"\",県税提出用①!CT15)","v":""}]
[]
[]
[null,"シ"]
[]
[]
[null,"01",null,null,null,null,null,null,null,null,null,null,null,null,null,null,{"$f":"IF(県税提出用①!Q21=\"\",\"\",県税提出用①!Q21)","v":""}]
[]
[null,"02",null,null,null,null,null,null,null,null,null,null,null,null,null,null,{"$f":"IF(県税提出用①!Q23=\"\",\"\",県税提出用①!Q23)","v":""}]
[]
[null,"03",null,null,null,null,null,null,null,null,null,null,null,null,null,null,{"$f":"IF(県税提出用①!Q25=\"\",\"\",県税提出用①!Q25)","v":""}]
[]
[null,"04",null,null,null,null,null,null,null,null,null,null,null,null,null,null,{"$f":"IF(県税提出用①!Q27=\"\",\"\",県税提出用①!Q27)","v":""}]
[]
[null,"05",null,null,null,null,null,null,null,null,null,null,null,null,null,null,{"$f":"IF(県税提出用①!Q29=\"\",\"\",県税提出用①!Q29)","v":""}]
[]
[null,"06",null,null,null,null,null,null,null,null,null,null,null,null,null,null,{"$f":"IF(県税提出用①!Q31=\"\",\"\",県税提出用①!Q31)","v":""}]
[]
[null,"07",null,null,null,null,null,null,null,null,null,null,null,null,null,null,{"$f":"IF(県税提出用①!Q33=\"\",\"\",県税提出用①!Q33)","v":""}]
[]
[null,"08",null,null,null,null,null,null,null,null,null,null,null,null,null,null,{"$f":"IF(県税提出用①!Q35=\"\",\"\",県税提出用①!Q35)","v":""}]
[]
[null,"09",null,null,null,null,null,null,null,null,null,null,null,null,null,null,{"$f":"IF(県税提出用①!Q37=\"\",\"\",県税提出用①!Q37)","v":""}]
[]
[null,"10",null,null,null,null,null,null,null,null,null,null,null,null,null,null,{"$f":"IF(県税提出用①!Q39=\"\",\"\",県税提出用①!Q39)","v":""}]
[]
[null,"11",null,null,null,null,null,null,null,null,null,null,null,null,null,null,{"$f":"IF(県税提出用①!Q41=\"\",\"\",県税提出用①!Q41)","v":""}]
[]
[null,"12",null,null,null,null,null,null,null,null,null,null,null,null,null,null,{"$f":"IF(県税提出用①!Q43=\"\",\"\",県税提出用①!Q43)","v":""}]
[]
[null,"13",null,null,null,null,null,null,null,null,null,null,null,null,null,null,{"$f":"IF(県税提出用①!Q45=\"\",\"\",県税提出用①!Q45)","v":""}]
[]
[null,"14",null,null,null,null,null,null,null,null,null,null,null,null,null,null,{"$f":"IF(県税提出用①!Q47=\"\",\"\",県税提出用①!Q47)","v":""}]
[]
[null,"15",null,null,null,null,null,null,null,null,null,null,null,null,null,null,{"$f":"IF(県税提出用①!Q49=\"\",\"\",県税提出用①!Q49)","v":""}]
[]
[null,"16",null,null,null,null,null,null,null,null,null,null,null,null,null,null,{"$f":"IF(県税提出用①!Q51=\"\",\"\",県税提出用①!Q51)","v":""}]
[]
[null,"17",null,null,null,null,null,null,null,null,null,null,null,null,null,null,{"$f":"IF(県税提出用①!Q53=\"\",\"\",県税提出用①!Q53)","v":""}]
[]
[null,"18",null,null,null,null,null,null,null,null,null,null,null,null,null,null,{"$f":"IF(県税提出用①!Q55=\"\",\"\",県税提出用①!Q55)","v":""}]
[]
[null,"19",null,null,null,null,null,null,null,null,null,null,null,null,null,null,{"$f":"IF(県税提出用①!Q57=\"\",\"\",県税提出用①!Q57)","v":""}]
[]
[null,"20",null,null,null,null,null,null,null,null,null,null,null,null,null,null,{"$f":"IF(県税提出用①!Q59=\"\",\"\",県税提出用①!Q59)","v":""}]
[]
[null,"21",null,null,null,null,null,null,null,null,null,null,null,null,null,null,{"$f":"IF(県税提出用①!Q61=\"\",\"\",県税提出用①!Q61)","v":""}]
[]
[null,"22",null,null,null,null,null,null,null,null,null,null,null,null,null,null,{"$f":"IF(県税提出用①!Q63=\"\",\"\",県税提出用①!Q63)","v":""}]
[]
[null,"23",null,null,null,null,null,null,null,null,null,null,null,null,null,null,{"$f":"IF(県税提出用①!Q65=\"\",\"\",県税提出用①!Q65)","v":""}]
[]
[null,"24",null,null,null,null,null,null,null,null,null,null,null,null,null,null,{"$f":"IF(県税提出用①!Q67=\"\",\"\",県税提出用①!Q67)","v":""}]

{"sheet":"提出用控","index":2,"n_rows":67,"n_cols":113,"rows_kept":67,"cut":false,"hidden":false,"merged":[[5,94,5,96],[8,103,9,108],[8,109,9,114],[19,1,19,10],[19,12,19,15],[17,12,18,64],[20,12,21,15],[4,1,6,64],[22,1,23,11],[8,115,9,120],[11,97,12,106],[11,107,13,120],[34,12,35,15],[36,12,37,15],[36,16,36,64],[20,16,20,64],[30,16,30,64],[28,16,28,64],[26,16,26,64],[24,16,24,64],[22,16,22,64],[32,16,32,64],[34,16,34,64],[28,12,29,15],[30,12,31,15],[32,12,33,15],[8,97,9,102],[58,12,59,15],[60,12,61,15],[54,12,55,15],[56,12,57,15],[38,12,39,15],[40,16,40,64],[56,16,56,64],[54,16,54,64],[52,16,52,64],[50,16,50,64],[40,12,41,15],[46,12,47,15],[48,12,49,15],[46,16,46,64],[48,16,48,64],[42,12,43,15],[44,12,45,15],[44,16,44,64],[42,16,42,64],[50,12,51,15],[52,12,53,15],[66,16,66,64],[64,16,64,64],[62,16,62,64],[38,16,38,64],[8,73,9,78],[8,79,9,84],[8,85,9,90],[8,91,9,96],[20,65,67,120],[19,65,19,120],[14,97,15,106],[14,107,16,120],[17,65,18,120],[12,16,15,24],[7,1,8,64],[66,12,67,15],[60,16,60,64],[58,16,58,64],[2,65,10,72],[22,12,23,15],[24,12,25,15],[26,12,27,15],[62,12,63,15],[64,12,65,15],[3,1,3,10],[9,1,9,64],[12,13,15,15],[12,10,15,12],[12,25,15,40],[12,41,15,60],[4,117,4,120],[4,103,4,106],[4,107,4,111],[2,73,3,102],[2,103,3,111],[2,112,3,120],[4,112,4,116],[5,97,5,99],[5,100,5,102],[6,73,7,84],[6,85,7,120],[5,76,5,78],[5,79,5,81],[5,82,5,84],[5,85,5,87],[5,88,5,90],[4,73,4,102],[5,91,5,93],[66,1,67,11],[17,1,18,11],[48,1,49,11],[50,1,51,11],[52,1,53,11],[54,1,55,11],[56,1,57,11],[58,1,59,11],[60,1,61,11],[62,1,63,11],[64,1,65,11],[30,1,31,11],[32,1,33,11],[34,1,35,11],[36,1,37,11],[38,1,39,11],[40,1,41,11],[42,1,43,11],[44,1,45,11],[46,1,47,11],[20,1,21,11],[24,1,25,11],[26,1,27,11],[28,1,29,11]]}
[]
[]
[null,null,null,null,null,null,null,null,null,null,null,null,null,null,null,null,null,null,null,null,null,null,null,null,null,null,null,null,null,null,null,null,null,null,null,null,null,null,null,null,null,null,null,null,null,null,null,null,null,null,null,null,null,null,null,null,null,null,null,null,null,null,null,null,null,"※処理事項",null,null,null,null,null,null,null,"事業者コード",null,null,null,null,null,null,null,null,null,null,null,null,null,null,null,null,null,null,null,null,null,null,null,null,null,null,null,null,null,"処理\n区分",null,null,null,null,null,null,null,null,"申告\n区分"]
[null,"　申告者の氏名又は名称"]
[null,{"$f":"IF(県税提出用①!B5=\"\",\"\",県税提出用①!B5)","v":""},null,null,null,null,null,null,null,null,null,null,null,null,null,null,null,null,null,null,null,null,null,null,null,null,null,null,null,null,null,null,null,null,null,null,null,null,null,null,null,null,null,null,null,null,null,null,null,null,null,null,null,null,null,null,null,null,null,null,null,null,null,null,null,null,null,null,null,null,null,null,null,{"$f":"IF(県税提出用①!BV5=\"\",\"\",県税提出用①!BV5)","v":""}]
[]
[null,null,null,null,null,null,null,null,null,null,null,null,null,null,null,null,null,null,null,null,null,null,null,null,null,null,null,null,null,null,null,null,null,null,null,null,null,null,null,null,null,null,null,null,null,null,null,null,null,null,null,null,null,null,null,null,null,null,null,null,null,null,null,null,null,null,null,null,null,null,null,null,null,"予備",null,null,null,null,null,null,null,null,null,null,null,"申 告 年 月 日"]
[null,"　個人番号又は法人番号\n　    　 　　↓個人番号の記載に当たっては、左端を空欄とし、ここから記載してください。"]
[null,null,null,null,null,null,null,null,null,null,null,null,null,null,null,null,null,null,null,null,null,null,null,null,null,null,null,null,null,null,null,null,null,null,null,null,null,null,null,null,null,null,null,null,null,null,null,null,null,null,null,null,null,null,null,null,null,null,null,null,null,null,null,null,null,null,null,null,null,null,null,null,null,1,null,null,null,null,null,4]
[null,{"$f":"IF(県税提出用①!B10=\"\",\"\",県税提出用①!B10)","v":""}]
[]
[null,null,null,null,null,null,null,null,null,null,null,null,null,null,null,null,null,null,null,null,null,null,null,null,null,null,null,null,null,null,null,null,null,null,null,null,null,null,null,null,null,null,null,null,null,null,null,null,null,null,null,null,null,null,null,null,null,null,null,null,null,null,null,null,null,null,null,null,null,null,null,null,null,null,null,null,null,null,null,null,null,null,null,null,null,null,null,null,null,null,null,null,null,null,null,null,null,{"$f":"IF(県税提出用①!CT12=\"\",\"\",県税提出用①!CT12)","v":""},null,null,null,null,null,null,null,null,null,"枚のうち"]
[null,null,null,null,null,null,null,null,null,null,"令和",null,null,{"$f":"IF(県税提出用①!N13=\"\",\"\",県税提出用①!N13)","v":""},null,null,"年",null,null,null,null,null,null,null,null,{"$f":"IF(県税提出用①!Z13=\"\",\"\",県税提出用①!Z13)","v":""},null,null,null,null,null,null,null,null,null,null,null,null,null,null,null,"月申告分"]
[]
[null,null,null,null,null,null,null,null,null,null,null,null,null,null,null,null,null,null,null,null,null,null,null,null,null,null,null,null,null,null,null,null,null,null,null,null,null,null,null,null,null,null,null,null,null,null,null,null,null,null,null,null,null,null,null,null,null,null,null,null,null,null,null,null,null,null,null,null,null,null,null,null,null,null,null,null,null,null,null,null,null,null,null,null,null,null,null,null,null,null,null,null,null,null,null,null,null,{"$f":"IF(県税提出用①!CT15=\"\",\"\",県税提出用①!CT15)","v":""},null,null,null,null,null,null,null,null,null,"枚目"]
[]
[]
[null,"品　　　　目",null,null,null,null,null,null,null,null,null,null,"数　　　　量",null,null,null,null,null,null,null,null,null,null,null,null,null,null,null,null,null,null,null,null,null,null,null,null,null,null,null,null,null,null,null,null,null,null,null,null,null,null,null,null,null,null,null,null,null,null,null,null,null,null,null,null,"返還の理由及びその他\n参考となるべき事項"]
[]
[]
[null,{"$f":"IF(県税提出用①!B21=\"\",\"\",県税提出用①!B21)","v":""},null,null,null,null,null,null,null,null,null,null,null,null,null,null,{"$f":"IF(県税提出用①!Q21=\"\",\"\",県税提出用①!Q21)","v":""},null,null,null,null,null,null,null,null,null,null,null,null,null,null,null,null,null,null,null,null,null,null,null,null,null,null,null,null,null,null,null,null,null,null,null,null,null,null,null,null,null,null,null,null,null,null,null,null,{"$f":"IF(県税提出用①!BN21=\"\",\"\",県税提出用①!BN21)","v":""}]
[]
[null,{"$f":"IF(県税提出用①!B23=\"\",\"\",県税提出用①!B23)","v":""},null,null,null,null,null,null,null,null,null,null,null,null,null,null,{"$f":"IF(県税提出用①!Q23=\"\",\"\",県税提出用①!Q23)","v":""}]
[]
[null,{"$f":"IF(県税提出用①!B25=\"\",\"\",県税提出用①!B25)","v":""},null,null,null,null,null,null,null,null,null,null,null,null,null,null,{"$f":"IF(県税提出用①!Q25=\"\",\"\",県税提出用①!Q25)","v":""}]
[]
[null,{"$f":"IF(県税提出用①!B27=\"\",\"\",県税提出用①!B27)","v":""},null,null,null,null,null,null,null,null,null,null,null,null,null,null,{"$f":"IF(県税提出用①!Q27=\"\",\"\",県税提出用①!Q27)","v":""}]
[]
[null,{"$f":"IF(県税提出用①!B29=\"\",\"\",県税提出用①!B29)","v":""},null,null,null,null,null,null,null,null,null,null,null,null,null,null,{"$f":"IF(県税提出用①!Q29=\"\",\"\",県税提出用①!Q29)","v":""}]
[]
[null,{"$f":"IF(県税提出用①!B31=\"\",\"\",県税提出用①!B31)","v":""},null,null,null,null,null,null,null,null,null,null,null,null,null,null,{"$f":"IF(県税提出用①!Q31=\"\",\"\",県税提出用①!Q31)","v":""}]
[]
[null,{"$f":"IF(県税提出用①!B33=\"\",\"\",県税提出用①!B33)","v":""},null,null,null,null,null,null,null,null,null,null,null,null,null,null,{"$f":"IF(県税提出用①!Q33=\"\",\"\",県税提出用①!Q33)","v":""}]
[]
[null,{"$f":"IF(県税提出用①!B35=\"\",\"\",県税提出用①!B35)","v":""},null,null,null,null,null,null,null,null,null,null,null,null,null,null,{"$f":"IF(県税提出用①!Q35=\"\",\"\",県税提出用①!Q35)","v":""}]
[]
[null,{"$f":"IF(県税提出用①!B37=\"\",\"\",県税提出用①!B37)","v":""},null,null,null,null,null,null,null,null,null,null,null,null,null,null,{"$f":"IF(県税提出用①!Q37=\"\",\"\",県税提出用①!Q37)","v":""}]
[]
[null,{"$f":"IF(県税提出用①!B39=\"\",\"\",県税提出用①!B39)","v":""},null,null,null,null,null,null,null,null,null,null,null,null,null,null,{"$f":"IF(県税提出用①!Q39=\"\",\"\",県税提出用①!Q39)","v":""}]
[]
[null,{"$f":"IF(県税提出用①!B41=\"\",\"\",県税提出用①!B41)","v":""},null,null,null,null,null,null,null,null,null,null,null,null,null,null,{"$f":"IF(県税提出用①!Q41=\"\",\"\",県税提出用①!Q41)","v":""}]
[]
[null,{"$f":"IF(県税提出用①!B43=\"\",\"\",県税提出用①!B43)","v":""},null,null,null,null,null,null,null,null,null,null,null,null,null,null,{"$f":"IF(県税提出用①!Q43=\"\",\"\",県税提出用①!Q43)","v":""}]
[]
[null,{"$f":"IF(県税提出用①!B45=\"\",\"\",県税提出用①!B45)","v":""},null,null,null,null,null,null,null,null,null,null,null,null,null,null,{"$f":"IF(県税提出用①!Q45=\"\",\"\",県税提出用①!Q45)","v":""}]
[]
[null,{"$f":"IF(県税提出用①!B47=\"\",\"\",県税提出用①!B47)","v":""},null,null,null,null,null,null,null,null,null,null,null,null,null,null,{"$f":"IF(県税提出用①!Q47=\"\",\"\",県税提出用①!Q47)","v":""}]
[]
[null,{"$f":"IF(県税提出用①!B49=\"\",\"\",県税提出用①!B49)","v":""},null,null,null,null,null,null,null,null,null,null,null,null,null,null,{"$f":"IF(県税提出用①!Q49=\"\",\"\",県税提出用①!Q49)","v":""}]
[]
[null,{"$f":"IF(県税提出用①!B51=\"\",\"\",県税提出用①!B51)","v":""},null,null,null,null,null,null,null,null,null,null,null,null,null,null,{"$f":"IF(県税提出用①!Q51=\"\",\"\",県税提出用①!Q51)","v":""}]
[]
[null,{"$f":"IF(県税提出用①!B53=\"\",\"\",県税提出用①!B53)","v":""},null,null,null,null,null,null,null,null,null,null,null,null,null,null,{"$f":"IF(県税提出用①!Q53=\"\",\"\",県税提出用①!Q53)","v":""}]
[]
[null,{"$f":"IF(県税提出用①!B55=\"\",\"\",県税提出用①!B55)","v":""},null,null,null,null,null,null,null,null,null,null,null,null,null,null,{"$f":"IF(県税提出用①!Q55=\"\",\"\",県税提出用①!Q55)","v":""}]
[]
[null,{"$f":"IF(県税提出用①!B57=\"\",\"\",県税提出用①!B57)","v":""},null,null,null,null,null,null,null,null,null,null,null,null,null,null,{"$f":"IF(県税提出用①!Q57=\"\",\"\",県税提出用①!Q57)","v":""}]
[]
[null,{"$f":"IF(県税提出用①!B59=\"\",\"\",県税提出用①!B59)","v":""},null,null,null,null,null,null,null,null,null,null,null,null,null,null,{"$f":"IF(県税提出用①!Q59=\"\",\"\",県税提出用①!Q59)","v":""}]
[]
[null,{"$f":"IF(県税提出用①!B61=\"\",\"\",県税提出用①!B61)","v":""},null,null,null,null,null,null,null,null,null,null,null,null,null,null,{"$f":"IF(県税提出用①!Q61=\"\",\"\",県税提出用①!Q61)","v":""}]
[]
[null,{"$f":"IF(県税提出用①!B63=\"\",\"\",県税提出用①!B63)","v":""},null,null,null,null,null,null,null,null,null,null,null,null,null,null,{"$f":"IF(県税提出用①!Q63=\"\",\"\",県税提出用①!Q63)","v":""}]
[]
[null,{"$f":"IF(県税提出用①!B65=\"\",\"\",県税提出用①!B65)","v":""},null,null,null,null,null,null,null,null,null,null,null,null,null,null,{"$f":"IF(県税提出用①!Q65=\"\",\"\",県税提出用①!Q65)","v":""}]
[]
[null,{"$f":"IF(県税提出用①!B67=\"\",\"\",県税提出用①!B67)","v":""},null,null,null,null,null,null,null,null,null,null,null,null,null,null,{"$f":"IF(県税提出用①!Q67=\"\",\"\",県税提出用①!Q67)","v":""}]

{"sheet":"記載要領","index":3,"n_rows":22,"n_cols":3,"rows_kept":22,"cut":false,"hidden":false,"merged":[]}
[null,"第16号の５様式記載要領"]
[null,null,"１　この明細書は、小売販売業者から返還を受けた製造たばこについて、法第74"]
[null,null,"　条の14第１項の規定による控除若しくは同条第２項の規定による還付又は法第"]
[null,null,"　477条第１項の規定による控除若しくは同条第２項の規定による還付を受けよう"]
[null,null,"　とする場合に使用すること。"]
[null,null,"２　この明細書は、第16号様式の申告書・修正申告書、第16号の３様式の申告書"]
[null,null,"　・修正申告書若しくは第16号の７様式の申告書又は第34号の２様式の申告書・"]
[null,null,"　修正申告書、第34号の２の２様式の申告書・修正申告書若しくは第34号の２の"]
[null,null,"　６様式の申告書に添付すること。"]
[null,null,"３　※印の欄は、記載しないこと。"]
[null,null,"４　「個人番号又は法人番号」欄には、申告者が個人の場合は個人番号（行政手"]
[null,null,"　続における特定の個人を識別するための番号の利用等に関する法律第２条第５"]
[null,null,"　項に規定する個人番号をいう。）を記載し、法人の場合には、法人番号（同条"]
[null,null,"　第15項に規定する法人番号をいう。）を記載すること。"]
[null,null,"５　「数量」の欄は、紙巻たばこについては本数を、紙巻たばこ以外の製造たば"]
[null,null,"　こについては重量を記載すること。この場合において、重量について0.1グラム"]
[null,null,"　未満の端数があるときは、その端数を切り捨てること。"]
[null,null,"６　製造たばこの区分ごとの小計（紙巻たばこ以外の製造たばこにあっては、区"]
[null,null,"　分ごとの重量の小計を本数に換算したもの（この数値に小数点以下１位未満の"]
[null,null,"　端数があるときは、その端数を切り捨て、小数点以下１位まで算出したもの）"]
[null,null,"　）及びその合計を末尾の欄に記載すること。"]
[null,null,"７　市町村たばこ税については、（提出用）のみを使用すること。"]